[Event "Early-Titled-Tuesday-Blitz-February-06-2024"]
[Site "Chess.com"]
[Date "2024.02.06"]
[Round "5"]
[White "Omranalhosani21"]
[Black "CFN_Good_Evening"]
[Result "1-0"]
[WhiteElo "2513"]
[BlackElo "2001"]
[TimeControl "180+1"]
[EndTime "8:55:57 PST"]
[Termination "Omranalhosani21 won on time"]

1. e4 {[%clk 0:03:00.9]} 1... c5 {[%clk 0:02:59.6]} 2. Nf3 {[%clk 0:02:59.7]}
2... e6 {[%clk 0:02:58.6]} 3. d4 {[%clk 0:02:59.2]} 3... cxd4 {[%clk 0:02:59.5]}
4. Nxd4 {[%clk 0:02:59.9]} 4... Nc6 {[%clk 0:02:59.9]} 5. c4 {[%clk 0:02:59.4]}
5... Nf6 {[%clk 0:02:53.2]} 6. Nc3 {[%clk 0:02:49.2]} 6... d6 {[%clk 0:02:51.8]}
7. Be2 {[%clk 0:02:47.2]} 7... Be7 {[%clk 0:02:50.3]} 8. O-O {[%clk 0:02:46.8]}
8... O-O {[%clk 0:02:49.6]} 9. b3 {[%clk 0:02:46.4]} 9... a6 {[%clk 0:02:37.7]}
10. Be3 {[%clk 0:02:43.2]} 10... Qc7 {[%clk 0:02:37.3]} 11. Rc1 {[%clk
0:02:39.1]} 11... Bd7 {[%clk 0:02:17.8]} 12. f3 {[%clk 0:02:22.2]} 12... Rac8
{[%clk 0:02:05]} 13. Qd2 {[%clk 0:02:19.8]} 13... Qb8 {[%clk 0:02:02.4]} 14.
Rfd1 {[%clk 0:02:16.7]} 14... Rfd8 {[%clk 0:02:00.5]} 15. Qe1 {[%clk 0:02:13]}
15... Be8 {[%clk 0:01:57.7]} 16. Qf2 {[%clk 0:02:05.8]} 16... Nxd4 {[%clk
0:01:23.8]} 17. Bxd4 {[%clk 0:02:04.4]} 17... b5 {[%clk 0:01:24.4]} 18. cxb5
{[%clk 0:01:43.8]} 18... axb5 {[%clk 0:01:25.3]} 19. Bb6 {[%clk 0:01:35.1]}
19... Rd7 {[%clk 0:01:23.1]} 20. Bxb5 {[%clk 0:01:33.1]} 20... Rb7 {[%clk
0:01:22.4]} 21. Bxe8 {[%clk 0:01:30.5]} 21... Rxb6 {[%clk 0:01:04.7]} 22. Ba4
{[%clk 0:01:29.5]} 22... d5 {[%clk 0:01:04.7]} 23. Kh1 {[%clk 0:00:46.4]} 23...
Ba3 {[%clk 0:00:46.5]} 24. Nxd5 {[%clk 0:00:31.2]} 24... Rxc1 {[%clk 0:00:23.1]}
25. Rxc1 {[%clk 0:00:29.9]} 25... exd5 {[%clk 0:00:21.1]} 26. Re1 {[%clk
0:00:10.2]} 26... dxe4 {[%clk 0:00:19.7]} 27. fxe4 {[%clk 0:00:10.4]} 27... Bf8
{[%clk 0:00:14.2]} 28. e5 {[%clk 0:00:09.4]} 28... Ng4 {[%clk 0:00:09.4]} 29.
Qf4 {[%clk 0:00:09.1]} 29... Rg6 {[%clk 0:00:08.3]} 30. h3 {[%clk 0:00:08.8]}
30... Nh6 {[%clk 0:00:08.3]} 31. Qe4 {[%clk 0:00:06.3]} 31... Re6 {[%clk
0:00:07.2]} 32. Bd7 {[%clk 0:00:06]} 32... Re7 {[%clk 0:00:07]} 33. e6 {[%clk
0:00:06.4]} 33... fxe6 {[%clk 0:00:06.5]} 34. Bxe6+ {[%clk 0:00:07.3]} 34... Kh8
{[%clk 0:00:06.4]} 35. Qd5 {[%clk 0:00:08.2]} 35... Qb6 {[%clk 0:00:02.9]} 36.
Rf1 {[%clk 0:00:09.1]} 36... Qb8 {[%clk 0:00:02.5]} 37. Bd7 {[%clk 0:00:07.9]}
37... Qd8 {[%clk 0:00:01.1]} 38. Qb7 {[%clk 0:00:06.1]} 1-0

[Event "Early-Titled-Tuesday-Blitz-February-06-2024"]
[Site "Chess.com"]
[Date "2024.02.06"]
[Round "5"]
[White "Matols"]
[Black "Keeper0416"]
[Result "0-1"]
[WhiteElo "2406"]
[BlackElo "2570"]
[TimeControl "180+1"]
[EndTime "8:55:58 PST"]
[Termination "Keeper0416 won on time"]

1. d4 {[%clk 0:03:00.9]} 1... Nf6 {[%clk 0:02:59.5]} 2. c4 {[%clk 0:03:00.1]}
2... a6 {[%clk 0:02:55.5]} 3. g3 {[%clk 0:02:56.4]} 3... c6 {[%clk 0:02:41.8]}
4. Bg2 {[%clk 0:02:52]} 4... b5 {[%clk 0:02:40.9]} 5. Nd2 {[%clk 0:02:48.1]}
5... d5 {[%clk 0:02:39.9]} 6. b3 {[%clk 0:02:36.4]} 6... g6 {[%clk 0:02:31.6]}
7. Ngf3 {[%clk 0:02:34.7]} 7... Bg7 {[%clk 0:02:31.6]} 8. O-O {[%clk 0:02:34.2]}
8... O-O {[%clk 0:02:32.2]} 9. Bb2 {[%clk 0:02:31.2]} 9... Bf5 {[%clk
0:02:21.6]} 10. Nh4 {[%clk 0:02:27.6]} 10... Be6 {[%clk 0:02:18.8]} 11. Rc1
{[%clk 0:02:23.3]} 11... Qb6 {[%clk 0:02:14.8]} 12. c5 {[%clk 0:02:03.2]} 12...
Qc7 {[%clk 0:02:12.1]} 13. f4 {[%clk 0:01:56.4]} 13... Bf5 {[%clk 0:02:05.2]}
14. Nxf5 {[%clk 0:01:39.4]} 14... gxf5 {[%clk 0:02:06.1]} 15. Nf3 {[%clk
0:01:37.6]} 15... e6 {[%clk 0:02:05.2]} 16. Ne5 {[%clk 0:01:37.1]} 16... Ne4
{[%clk 0:01:56.4]} 17. e3 {[%clk 0:01:35.7]} 17... f6 {[%clk 0:01:54.8]} 18. Nd3
{[%clk 0:01:31.9]} 18... a5 {[%clk 0:01:54.7]} 19. a3 {[%clk 0:01:21.8]} 19...
Nd7 {[%clk 0:01:53.2]} 20. Qh5 {[%clk 0:01:15.3]} 20... Kh8 {[%clk 0:01:50.7]}
21. Rc2 {[%clk 0:01:11.3]} 21... Rg8 {[%clk 0:01:50]} 22. Kh1 {[%clk 0:00:50.8]}
22... a4 {[%clk 0:01:49.7]} 23. b4 {[%clk 0:00:42.5]} 23... Nf8 {[%clk
0:01:47.4]} 24. Bc1 {[%clk 0:00:34.9]} 24... Ng6 {[%clk 0:01:41.6]} 25. Bd2
{[%clk 0:00:33.2]} 25... Bf8 {[%clk 0:01:13]} 26. Be1 {[%clk 0:00:28.2]} 26...
Ne7 {[%clk 0:01:10.7]} 27. Bf3 {[%clk 0:00:16.5]} 27... Rg6 {[%clk 0:01:08.2]}
28. Bg2 {[%clk 0:00:15.1]} 28... Bg7 {[%clk 0:01:06.9]} 29. Qd1 {[%clk 0:00:15]}
29... Rg8 {[%clk 0:01:05.6]} 30. Bf3 {[%clk 0:00:14.9]} 30... Rh6 {[%clk
0:01:04.1]} 31. Rg2 {[%clk 0:00:15.5]} 31... Bf8 {[%clk 0:01:01.1]} 32. Rfg1
{[%clk 0:00:15.6]} 32... Ng6 {[%clk 0:00:36.7]} 33. Rf1 {[%clk 0:00:14.7]} 33...
Qf7 {[%clk 0:00:29.6]} 34. Rfg1 {[%clk 0:00:14.7]} 34... Be7 {[%clk 0:00:30.1]}
35. Rf1 {[%clk 0:00:14.7]} 35... Nf8 {[%clk 0:00:29.9]} 36. Rfg1 {[%clk
0:00:14.8]} 36... Qg7 {[%clk 0:00:29.4]} 37. Rf1 {[%clk 0:00:13.5]} 37... Rg6
{[%clk 0:00:29.7]} 38. Rfg1 {[%clk 0:00:13.3]} 38... Nd7 {[%clk 0:00:29.7]} 39.
Rf1 {[%clk 0:00:12.7]} 39... Rf8 {[%clk 0:00:30.2]} 40. Rfg1 {[%clk 0:00:12.9]}
40... Rg8 {[%clk 0:00:24.9]} 41. Rf1 {[%clk 0:00:12.7]} 41... Bd8 {[%clk
0:00:24.3]} 42. Rfg1 {[%clk 0:00:09.9]} 42... Bc7 {[%clk 0:00:24.9]} 43. Rf1
{[%clk 0:00:10.1]} 43... e5 {[%clk 0:00:23.5]} 44. Rfg1 {[%clk 0:00:08.7]} 44...
exd4 {[%clk 0:00:21.8]} 45. exd4 {[%clk 0:00:08.6]} 45... Nf8 {[%clk 0:00:22.7]}
46. Rf1 {[%clk 0:00:07.8]} 46... Ne6 {[%clk 0:00:23.2]} 47. Nf2 {[%clk
0:00:05.8]} 47... Nxf4 {[%clk 0:00:20.3]} 48. gxf4 {[%clk 0:00:04.7]} 48... Rxg2
{[%clk 0:00:20.7]} 0-1

[Event "Early-Titled-Tuesday-Blitz-February-06-2024"]
[Site "Chess.com"]
[Date "2024.02.06"]
[Round "5"]
[White "agvania123"]
[Black "ChessLebaneseSalah"]
[Result "1-0"]
[WhiteElo "2307"]
[BlackElo "2444"]
[TimeControl "180+1"]
[EndTime "8:55:58 PST"]
[Termination "agvania123 won on time"]

1. c4 {[%clk 0:03:00.9]} 1... c6 {[%clk 0:02:59.7]} 2. d4 {[%clk 0:02:59.2]}
2... d5 {[%clk 0:02:58.8]} 3. Nc3 {[%clk 0:02:59.7]} 3... Nf6 {[%clk 0:02:57.1]}
4. Bg5 {[%clk 0:02:56]} 4... e6 {[%clk 0:02:56.7]} 5. cxd5 {[%clk 0:02:55.1]}
5... exd5 {[%clk 0:02:56.3]} 6. e3 {[%clk 0:02:55.5]} 6... Be7 {[%clk 0:02:56]}
7. Bd3 {[%clk 0:02:55.5]} 7... Bg4 {[%clk 0:02:54.4]} 8. Qc2 {[%clk 0:02:53.7]}
8... Bh5 {[%clk 0:02:52.8]} 9. Nge2 {[%clk 0:02:52.5]} 9... Bg6 {[%clk
0:02:50.2]} 10. O-O {[%clk 0:02:49.2]} 10... Nbd7 {[%clk 0:02:49.1]} 11. f3
{[%clk 0:02:44.7]} 11... c5 {[%clk 0:02:30]} 12. dxc5 {[%clk 0:02:18.5]} 12...
Nxc5 {[%clk 0:02:20]} 13. Bxg6 {[%clk 0:02:13]} 13... hxg6 {[%clk 0:02:20.9]}
14. Nd4 {[%clk 0:02:04.2]} 14... a6 {[%clk 0:01:41.3]} 15. Rad1 {[%clk
0:02:01.3]} 15... Qc7 {[%clk 0:01:39.2]} 16. Bf4 {[%clk 0:02:00]} 16... Bd6
{[%clk 0:01:37.1]} 17. Ncb5 {[%clk 0:01:47.3]} 17... axb5 {[%clk 0:01:32.4]} 18.
Nxb5 {[%clk 0:01:48.2]} 18... Qc6 {[%clk 0:01:21.8]} 19. Nxd6+ {[%clk
0:01:39.3]} 19... Ke7 {[%clk 0:01:20.3]} 20. Nxb7 {[%clk 0:01:34.3]} 20... Qxb7
{[%clk 0:01:10.3]} 21. Qxc5+ {[%clk 0:01:33.5]} 21... Ke8 {[%clk 0:01:06.2]} 22.
Be5 {[%clk 0:01:15.2]} 22... Rc8 {[%clk 0:00:49.4]} 23. Qd4 {[%clk 0:01:06]}
23... Rc4 {[%clk 0:00:43.2]} 24. Qd3 {[%clk 0:01:01.6]} 24... Rc5 {[%clk
0:00:22.2]} 25. Bxf6 {[%clk 0:00:57.6]} 25... gxf6 {[%clk 0:00:21.7]} 26. Rc1
{[%clk 0:00:55.7]} 26... Rxc1 {[%clk 0:00:20.2]} 27. Rxc1 {[%clk 0:00:56.6]}
27... Kf8 {[%clk 0:00:19.8]} 28. Qd4 {[%clk 0:00:52.1]} 28... Kg7 {[%clk
0:00:19.2]} 29. b4 {[%clk 0:00:52]} 29... Ra8 {[%clk 0:00:17.5]} 30. Rc2 {[%clk
0:00:45]} 30... Qb5 {[%clk 0:00:15.1]} 31. Rd2 {[%clk 0:00:42.4]} 31... Rc8
{[%clk 0:00:10.2]} 32. a3 {[%clk 0:00:31]} 32... Rc1+ {[%clk 0:00:09.3]} 33. Rd1
{[%clk 0:00:31.5]} 33... Rc2 {[%clk 0:00:06.9]} 34. Qd3 {[%clk 0:00:25.7]} 34...
Rc4 {[%clk 0:00:05]} 35. h3 {[%clk 0:00:21.3]} 35... Qa6 {[%clk 0:00:03.2]} 36.
Qxd5 {[%clk 0:00:18.2]} 36... Rc2 {[%clk 0:00:01.9]} 37. Qd3 {[%clk 0:00:18.3]}
37... Qc8 {[%clk 0:00:01.5]} 38. Rd2 {[%clk 0:00:17.7]} 38... Rc1+ {[%clk
0:00:01.8]} 39. Kh2 {[%clk 0:00:17.5]} 39... Qc7+ {[%clk 0:00:02.3]} 40. f4
{[%clk 0:00:17.9]} 40... Qb7 {[%clk 0:00:01.7]} 41. b5 {[%clk 0:00:17.7]} 41...
Qb8 {[%clk 0:00:01.8]} 42. a4 {[%clk 0:00:17]} 42... Qb7 {[%clk 0:00:02.3]} 43.
a5 {[%clk 0:00:16.2]} 43... Qa7 {[%clk 0:00:02.6]} 44. b6 {[%clk 0:00:16]} 44...
Qb7 {[%clk 0:00:03.1]} 45. Qd5 {[%clk 0:00:13.1]} 45... Qb8 {[%clk 0:00:03]} 46.
b7 {[%clk 0:00:12]} 46... Ra1 {[%clk 0:00:03]} 47. Qb5 {[%clk 0:00:09.1]} 47...
Rc1 {[%clk 0:00:01.2]} 48. a6 {[%clk 0:00:09.1]} 1-0

[Event "Early-Titled-Tuesday-Blitz-February-06-2024"]
[Site "Chess.com"]
[Date "2024.02.06"]
[Round "5"]
[White "manitodeplomo"]
[Black "Nuvas"]
[Result "1-0"]
[WhiteElo "2599"]
[BlackElo "2784"]
[TimeControl "180+1"]
[EndTime "8:55:59 PST"]
[Termination "manitodeplomo won by resignation"]

1. d4 {[%clk 0:03:00.9]} 1... Nf6 {[%clk 0:03:00]} 2. c4 {[%clk 0:02:57.2]} 2...
e6 {[%clk 0:03:00.1]} 3. Nf3 {[%clk 0:02:55.5]} 3... d5 {[%clk 0:03:00.1]} 4.
Nc3 {[%clk 0:02:55.2]} 4... c6 {[%clk 0:02:59.8]} 5. Bg5 {[%clk 0:02:54.7]} 5...
dxc4 {[%clk 0:02:59.7]} 6. e4 {[%clk 0:02:53.9]} 6... b5 {[%clk 0:03:00]} 7. a4
{[%clk 0:02:53.6]} 7... Bb4 {[%clk 0:02:53.4]} 8. e5 {[%clk 0:02:52.5]} 8... h6
{[%clk 0:02:52.6]} 9. exf6 {[%clk 0:02:52.5]} 9... hxg5 {[%clk 0:02:52.5]} 10.
fxg7 {[%clk 0:02:52.8]} 10... Rg8 {[%clk 0:02:52.5]} 11. g3 {[%clk 0:02:53]}
11... Bb7 {[%clk 0:02:30]} 12. Bg2 {[%clk 0:02:53.2]} 12... c5 {[%clk
0:02:29.3]} 13. O-O {[%clk 0:02:49.5]} 13... Bxc3 {[%clk 0:02:26]} 14. bxc3
{[%clk 0:02:48.3]} 14... b4 {[%clk 0:02:12]} 15. dxc5 {[%clk 0:02:38.3]} 15...
Qxd1 {[%clk 0:02:10.1]} 16. Rfxd1 {[%clk 0:02:36.1]} 16... bxc3 {[%clk
0:01:52.1]} 17. Nxg5 {[%clk 0:02:01.6]} 17... Bxg2 {[%clk 0:01:50.9]} 18. Kxg2
{[%clk 0:02:02.5]} 18... Na6 {[%clk 0:01:45.7]} 19. Ne4 {[%clk 0:01:57.1]} 19...
Rxg7 {[%clk 0:01:29.7]} 20. Rac1 {[%clk 0:01:52.8]} 20... f5 {[%clk 0:01:18.8]}
21. Nd6+ {[%clk 0:01:50.7]} 21... Ke7 {[%clk 0:01:15.9]} 22. Rxc3 {[%clk
0:01:49.6]} 22... Nxc5 {[%clk 0:00:57.4]} 23. Rxc4 {[%clk 0:01:48.5]} 23... Nd7
{[%clk 0:00:56.9]} 24. Rc7 {[%clk 0:01:44.1]} 24... Kf6 {[%clk 0:00:37.3]} 25.
Nxf5 {[%clk 0:01:35.7]} 25... exf5 {[%clk 0:00:37.3]} 26. Rdxd7 {[%clk
0:01:34.8]} 26... Rxd7 {[%clk 0:00:37.5]} 27. Rxd7 {[%clk 0:01:35.7]} 27... Ke6
{[%clk 0:00:37.9]} 28. Rb7 {[%clk 0:01:34.2]} 28... Kd6 {[%clk 0:00:33.6]} 29.
a5 {[%clk 0:01:33]} 29... a6 {[%clk 0:00:33]} 30. Rb6+ {[%clk 0:01:31.6]} 30...
Kc5 {[%clk 0:00:33.3]} 31. Kf3 {[%clk 0:01:30.8]} 31... Kd5 {[%clk 0:00:28.5]}
32. h4 {[%clk 0:01:25.7]} 32... Ke5 {[%clk 0:00:26.1]} 33. h5 {[%clk 0:01:24.9]}
33... Rh8 {[%clk 0:00:21.6]} 34. h6 {[%clk 0:01:24.6]} 34... Ra8 {[%clk
0:00:22.5]} 35. Ke3 {[%clk 0:01:22.8]} 35... f4+ {[%clk 0:00:21.8]} 36. Kf3
{[%clk 0:01:21.1]} 36... Kf5 {[%clk 0:00:22.7]} 37. g4+ {[%clk 0:01:10.7]} 37...
Kg5 {[%clk 0:00:22.9]} 38. h7 {[%clk 0:01:09.7]} 38... Rh8 {[%clk 0:00:21.2]}
39. Rb7 {[%clk 0:01:07.8]} 39... Rc8 {[%clk 0:00:19.6]} 40. Kg2 {[%clk
0:00:55.7]} 40... Rh8 {[%clk 0:00:11.2]} 41. Ra7 {[%clk 0:00:47.6]} 41... Kxg4
{[%clk 0:00:09.9]} 42. Rg7+ {[%clk 0:00:40.8]} 42... Kf5 {[%clk 0:00:08.8]} 43.
Kf3 {[%clk 0:00:40.8]} 43... Kf6 {[%clk 0:00:09.3]} 44. Ra7 {[%clk 0:00:40.3]}
44... Kg5 {[%clk 0:00:09.3]} 45. Ke4 {[%clk 0:00:33.2]} 45... Re8+ {[%clk
0:00:09.3]} 46. Kd5 {[%clk 0:00:29.9]} 46... Rh8 {[%clk 0:00:05.2]} 47. f3
{[%clk 0:00:26.3]} 47... Kh4 {[%clk 0:00:05]} 48. Ke4 {[%clk 0:00:26.2]} 48...
Rf8 {[%clk 0:00:04.5]} 49. Rg7 {[%clk 0:00:24.9]} 49... Rh8 {[%clk 0:00:02.6]}
50. Kxf4 {[%clk 0:00:23.6]} 50... Kh5 {[%clk 0:00:03.5]} 51. Kf5 {[%clk
0:00:21.3]} 51... Kh6 {[%clk 0:00:04.1]} 52. Rf7 {[%clk 0:00:20.5]} 52... Rf8
{[%clk 0:00:04.7]} 53. Rxf8 {[%clk 0:00:20]} 1-0

[Event "Early-Titled-Tuesday-Blitz-February-06-2024"]
[Site "Chess.com"]
[Date "2024.02.06"]
[Round "5"]
[White "kekic76"]
[Black "Cambek64"]
[Result "0-1"]
[WhiteElo "2364"]
[BlackElo "2515"]
[TimeControl "180+1"]
[EndTime "8:56:00 PST"]
[Termination "Cambek64 won on time"]

1. e4 {[%clk 0:03:00.9]} 1... e6 {[%clk 0:00:36.2]} 2. d4 {[%clk 0:02:56.6]}
2... d5 {[%clk 0:00:36.8]} 3. exd5 {[%clk 0:02:57]} 3... exd5 {[%clk 0:00:36.4]}
4. Bd3 {[%clk 0:02:57.2]} 4... Bd6 {[%clk 0:00:36.5]} 5. Ne2 {[%clk 0:02:57.4]}
5... Ne7 {[%clk 0:00:36.8]} 6. Bf4 {[%clk 0:02:57.5]} 6... O-O {[%clk
0:00:37.1]} 7. O-O {[%clk 0:02:57.2]} 7... c6 {[%clk 0:00:36.7]} 8. c3 {[%clk
0:02:57.3]} 8... Bf5 {[%clk 0:00:37.3]} 9. Qc2 {[%clk 0:02:55]} 9... Bxd3 {[%clk
0:00:36.6]} 10. Qxd3 {[%clk 0:02:55]} 10... Bxf4 {[%clk 0:00:37.2]} 11. Nxf4
{[%clk 0:02:54.7]} 11... Nd7 {[%clk 0:00:36]} 12. Nd2 {[%clk 0:02:54.3]} 12...
Ng6 {[%clk 0:00:34.4]} 13. Nxg6 {[%clk 0:02:50.9]} 13... hxg6 {[%clk 0:00:34.8]}
14. Rfe1 {[%clk 0:02:50.6]} 14... Re8 {[%clk 0:00:35.3]} 15. Re3 {[%clk
0:02:49.2]} 15... Rxe3 {[%clk 0:00:34.4]} 16. Qxe3 {[%clk 0:02:49.4]} 16... Qe8
{[%clk 0:00:34.4]} 17. Re1 {[%clk 0:02:49.4]} 17... Qxe3 {[%clk 0:00:34.8]} 18.
Rxe3 {[%clk 0:02:50]} 18... Kf8 {[%clk 0:00:33.9]} 19. Nb3 {[%clk 0:02:49]}
19... b6 {[%clk 0:00:32.3]} 20. Nc1 {[%clk 0:02:48.6]} 20... a5 {[%clk
0:00:31.2]} 21. Nd3 {[%clk 0:02:48.2]} 21... f6 {[%clk 0:00:29.8]} 22. f4 {[%clk
0:02:31.3]} 22... Kf7 {[%clk 0:00:29.9]} 23. Kf2 {[%clk 0:02:30.9]} 23... c5
{[%clk 0:00:30.5]} 24. Ke2 {[%clk 0:01:55.5]} 24... c4 {[%clk 0:00:27.9]} 25.
Ne1 {[%clk 0:01:53.3]} 25... b5 {[%clk 0:00:28.2]} 26. Nc2 {[%clk 0:01:51.2]}
26... Rb8 {[%clk 0:00:23.9]} 27. a3 {[%clk 0:01:50.7]} 27... Nb6 {[%clk
0:00:23.7]} 28. Kd2 {[%clk 0:01:49.8]} 28... Na4 {[%clk 0:00:22.1]} 29. Kc1
{[%clk 0:01:49.9]} 29... Rb6 {[%clk 0:00:22.3]} 30. g3 {[%clk 0:01:46.9]} 30...
Re6 {[%clk 0:00:22.8]} 31. Rxe6 {[%clk 0:01:46.1]} 31... Kxe6 {[%clk 0:00:23.4]}
32. Ne3 {[%clk 0:01:46.2]} 32... f5 {[%clk 0:00:20.7]} 33. Nf1 {[%clk
0:01:29.3]} 33... Nb6 {[%clk 0:00:21.2]} 34. Nd2 {[%clk 0:01:29.6]} 34... Nd7
{[%clk 0:00:21.7]} 35. Nf3 {[%clk 0:01:28]} 35... Kf6 {[%clk 0:00:21.4]} 36. Ne5
{[%clk 0:01:08.9]} 36... Nb8 {[%clk 0:00:19.6]} 37. Kd2 {[%clk 0:01:06.5]} 37...
g5 {[%clk 0:00:19.5]} 38. Ke3 {[%clk 0:01:05.9]} 38... g4 {[%clk 0:00:20]} 39.
Kd2 {[%clk 0:01:01.3]} 39... Ke6 {[%clk 0:00:20.1]} 40. Kc2 {[%clk 0:00:57.6]}
40... a4 {[%clk 0:00:19.7]} 41. Kd2 {[%clk 0:00:52.8]} 41... Kd6 {[%clk
0:00:18.5]} 42. Ke3 {[%clk 0:00:49.3]} 42... Nd7 {[%clk 0:00:18.9]} 43. Nxd7
{[%clk 0:00:37]} 43... Kxd7 {[%clk 0:00:18.3]} 44. Ke2 {[%clk 0:00:33.7]} 44...
Ke6 {[%clk 0:00:18.7]} 0-1

[Event "Early-Titled-Tuesday-Blitz-February-06-2024"]
[Site "Chess.com"]
[Date "2024.02.06"]
[Round "5"]
[White "Ind1anStar"]
[Black "Jojo_898"]
[Result "0-1"]
[WhiteElo "2595"]
[BlackElo "2459"]
[TimeControl "180+1"]
[EndTime "8:56:01 PST"]
[Termination "Jojo_898 won on time"]

1. e4 {[%clk 0:03:00.9]} 1... d6 {[%clk 0:02:59.4]} 2. d4 {[%clk 0:03:00.8]}
2... Nf6 {[%clk 0:03:00.1]} 3. Nc3 {[%clk 0:03:00.8]} 3... g6 {[%clk 0:03:00.8]}
4. Be3 {[%clk 0:02:59.7]} 4... c6 {[%clk 0:03:01.4]} 5. h3 {[%clk 0:02:59.7]}
5... Bg7 {[%clk 0:03:01.8]} 6. g4 {[%clk 0:02:59.9]} 6... b5 {[%clk 0:03:01.9]}
7. Bg2 {[%clk 0:03:00.3]} 7... b4 {[%clk 0:03:02]} 8. Nce2 {[%clk 0:03:00.4]}
8... O-O {[%clk 0:03:02]} 9. Ng3 {[%clk 0:03:00.6]} 9... e5 {[%clk 0:03:00.8]}
10. N1e2 {[%clk 0:02:59.9]} 10... a5 {[%clk 0:02:59.5]} 11. g5 {[%clk
0:02:58.9]} 11... Nfd7 {[%clk 0:02:53.9]} 12. O-O {[%clk 0:02:57.5]} 12... c5
{[%clk 0:02:46.6]} 13. c3 {[%clk 0:02:49.7]} 13... Nc6 {[%clk 0:02:36.7]} 14. d5
{[%clk 0:02:47.4]} 14... Ne7 {[%clk 0:02:34.6]} 15. f4 {[%clk 0:02:47.4]} 15...
exf4 {[%clk 0:02:28.9]} 16. Bxf4 {[%clk 0:02:40.2]} 16... Ne5 {[%clk 0:02:28.6]}
17. Rc1 {[%clk 0:02:32.1]} 17... Ba6 {[%clk 0:02:28]} 18. Qd2 {[%clk 0:02:20.7]}
18... Nd3 {[%clk 0:02:26.1]} 19. Rcd1 {[%clk 0:02:03.7]} 19... Nxf4 {[%clk
0:02:25.3]} 20. Rxf4 {[%clk 0:02:02.6]} 20... Be5 {[%clk 0:02:22.4]} 21. Rf2
{[%clk 0:01:58.1]} 21... Nc8 {[%clk 0:02:14.4]} 22. h4 {[%clk 0:01:48.7]} 22...
Nb6 {[%clk 0:02:12.4]} 23. Nf1 {[%clk 0:01:37.9]} 23... Nc4 {[%clk 0:02:07.5]}
24. Qc1 {[%clk 0:01:38.1]} 24... Bg7 {[%clk 0:01:55.7]} 25. Ne3 {[%clk
0:01:24.1]} 25... Ne5 {[%clk 0:01:43]} 26. Nf4 {[%clk 0:01:18.3]} 26... h6
{[%clk 0:01:35.8]} 27. Kh1 {[%clk 0:00:46.5]} 27... hxg5 {[%clk 0:01:34.7]} 28.
hxg5 {[%clk 0:00:47.4]} 28... Qxg5 {[%clk 0:01:35.1]} 29. Rg1 {[%clk 0:00:41.8]}
29... Qh4+ {[%clk 0:01:31.9]} 30. Nh3 {[%clk 0:00:41.8]} 30... Nd3 {[%clk
0:01:31.2]} 31. Qf1 {[%clk 0:00:39.2]} 31... Nxf2+ {[%clk 0:01:30.9]} 32. Qxf2
{[%clk 0:00:40.1]} 32... Qxf2 {[%clk 0:01:31.4]} 33. Nxf2 {[%clk 0:00:41]} 33...
bxc3 {[%clk 0:01:31.9]} 34. bxc3 {[%clk 0:00:41.9]} 34... Bxc3 {[%clk
0:01:32.3]} 35. Nfg4 {[%clk 0:00:39.7]} 35... Kg7 {[%clk 0:01:31.2]} 36. Bf3
{[%clk 0:00:34.6]} 36... Bd4 {[%clk 0:01:30.5]} 37. Rg3 {[%clk 0:00:28]} 37...
Rab8 {[%clk 0:01:28.1]} 38. Bd1 {[%clk 0:00:09.3]} 38... Rb1 {[%clk 0:01:22.5]}
39. Kg2 {[%clk 0:00:09.5]} 39... Bd3 {[%clk 0:01:22.3]} 40. Nf2 {[%clk
0:00:07.1]} 40... c4 {[%clk 0:01:11.3]} 41. Nf5+ {[%clk 0:00:07]} 41... Kf6
{[%clk 0:01:07.7]} 42. Ng4+ {[%clk 0:00:06.3]} 42... Kg5 {[%clk 0:01:04.8]} 43.
Ngh6+ {[%clk 0:00:06]} 43... Kf4 {[%clk 0:00:59.6]} 44. Rg4+ {[%clk 0:00:05.2]}
44... Ke5 {[%clk 0:00:57.5]} 45. Ne7 {[%clk 0:00:04.9]} 45... Bxe4+ {[%clk
0:00:42.5]} 46. Rxe4+ {[%clk 0:00:04.5]} 46... Kxe4 {[%clk 0:00:42]} 47. Bf3+
{[%clk 0:00:05.1]} 47... Kd3 {[%clk 0:00:39.7]} 48. Nc6 {[%clk 0:00:03.8]} 48...
c3 {[%clk 0:00:35.5]} 49. Ng4 {[%clk 0:00:04.1]} 49... c2 {[%clk 0:00:33.9]} 0-1

[Event "Early-Titled-Tuesday-Blitz-February-06-2024"]
[Site "Chess.com"]
[Date "2024.02.06"]
[Round "5"]
[White "SpongeBob_03"]
[Black "soloderisas"]
[Result "0-1"]
[WhiteElo "2211"]
[BlackElo "2519"]
[TimeControl "180+1"]
[EndTime "8:56:01 PST"]
[Termination "soloderisas won on time"]

1. e4 {[%clk 0:02:59.4]} 1... e5 {[%clk 0:03:00.5]} 2. Nf3 {[%clk 0:02:58.6]}
2... Nc6 {[%clk 0:03:01]} 3. Bc4 {[%clk 0:02:58.3]} 3... Nf6 {[%clk 0:03:00.4]}
4. d3 {[%clk 0:02:58.1]} 4... Bc5 {[%clk 0:02:59.6]} 5. c3 {[%clk 0:02:53.9]}
5... d6 {[%clk 0:02:58.4]} 6. Nbd2 {[%clk 0:02:47.8]} 6... a6 {[%clk 0:02:57.1]}
7. Bb3 {[%clk 0:02:46.8]} 7... h6 {[%clk 0:02:52.8]} 8. h3 {[%clk 0:02:45.9]}
8... Qe7 {[%clk 0:02:50.9]} 9. Nf1 {[%clk 0:02:44.6]} 9... Ba7 {[%clk
0:02:35.3]} 10. Ng3 {[%clk 0:02:43.2]} 10... g6 {[%clk 0:02:35.5]} 11. Bc2
{[%clk 0:02:39.4]} 11... Bd7 {[%clk 0:02:33.9]} 12. d4 {[%clk 0:02:34.1]} 12...
O-O-O {[%clk 0:02:34.1]} 13. d5 {[%clk 0:02:29.6]} 13... Nb8 {[%clk 0:02:33.4]}
14. Qe2 {[%clk 0:02:27.1]} 14... Nh5 {[%clk 0:02:04.7]} 15. Nxh5 {[%clk
0:02:18.7]} 15... gxh5 {[%clk 0:02:05.6]} 16. Be3 {[%clk 0:02:18.8]} 16... Bxe3
{[%clk 0:02:01.3]} 17. Qxe3 {[%clk 0:02:19.7]} 17... Rdg8 {[%clk 0:02:00.4]} 18.
g3 {[%clk 0:02:15.5]} 18... f5 {[%clk 0:01:46.8]} 19. O-O-O {[%clk 0:01:59.2]}
19... Rf8 {[%clk 0:01:37.1]} 20. Nh4 {[%clk 0:01:44.8]} 20... f4 {[%clk
0:01:34.5]} 21. Qd2 {[%clk 0:01:13.9]} 21... Rhg8 {[%clk 0:01:32.2]} 22. Rdg1
{[%clk 0:01:04.3]} 22... Qg5 {[%clk 0:01:19.5]} 23. Nf3 {[%clk 0:01:00.9]} 23...
Qf6 {[%clk 0:01:15.4]} 24. gxf4 {[%clk 0:00:54.2]} 24... Rxg1+ {[%clk
0:01:06.5]} 25. Rxg1 {[%clk 0:00:55.1]} 25... Bxh3 {[%clk 0:00:58.8]} 26. f5
{[%clk 0:00:54.3]} 26... Bg4 {[%clk 0:00:54.3]} 27. Nh2 {[%clk 0:00:51.4]} 27...
Nd7 {[%clk 0:00:47.6]} 28. f3 {[%clk 0:00:46.8]} 28... Bh3 {[%clk 0:00:47]} 29.
Qf2 {[%clk 0:00:46.1]} 29... h4 {[%clk 0:00:40.4]} 30. Rg6 {[%clk 0:00:33.7]}
30... Qe7 {[%clk 0:00:40.8]} 31. Qg1 {[%clk 0:00:29.8]} 31... b6 {[%clk
0:00:34.3]} 32. Bd3 {[%clk 0:00:25.6]} 32... Nc5 {[%clk 0:00:32.9]} 33. Be2
{[%clk 0:00:25]} 33... Kb7 {[%clk 0:00:30.6]} 34. b4 {[%clk 0:00:20.2]} 34...
Nd7 {[%clk 0:00:28.5]} 35. Rg7 {[%clk 0:00:19.9]} 35... Rf7 {[%clk 0:00:28.1]}
36. Rxf7 {[%clk 0:00:14.8]} 36... Qxf7 {[%clk 0:00:29]} 37. Bd3 {[%clk
0:00:07.6]} 37... Qf6 {[%clk 0:00:24.7]} 38. Be2 {[%clk 0:00:07.1]} 38... Qg5+
{[%clk 0:00:22.6]} 39. Qxg5 {[%clk 0:00:07.7]} 39... hxg5 {[%clk 0:00:23.5]} 40.
Kd1 {[%clk 0:00:08.1]} 40... b5 {[%clk 0:00:20.1]} 41. Ke1 {[%clk 0:00:08.3]}
41... c5 {[%clk 0:00:19]} 42. Kf2 {[%clk 0:00:08.9]} 42... Kb6 {[%clk
0:00:18.4]} 43. Kg1 {[%clk 0:00:06.9]} 43... a5 {[%clk 0:00:17.7]} 44. a3 {[%clk
0:00:05.3]} 44... Nf6 {[%clk 0:00:13.9]} 45. Bd3 {[%clk 0:00:04.3]} 45... Nh5
{[%clk 0:00:13.1]} 0-1